bitfinex-derivatives/quotes_SOLF0:USTF0_20240820
["timestamp","ask_amount","ask_price","bid_price","bid_amount"]
[1724165935590,32.36678135,142.65,142.63,0.04772375]
[1724165935792,32.32,142.65,142.56,32.32]
[1724165935988,32.32,142.63,142.59,3.5052]
[1724165936794,0.04437221,142.62,142.6,0.05021007]
[1724165937997,0.04437221,142.62,142.6,3.55541007]
[1724165938178,0.04437221,142.62,142.6,0.05021007]
[1724165939780,0.04437221,142.62,142.6,3.55531007]
[1724165939985,0.04437221,142.62,142.6,0.05021007]
[1724165940497,0.04437221,142.62,142.6,3.55531007]
[1724165940890,0.04437221,142.62,142.61,3.5049]
[1724165941394,0.04437221,142.62,142.6,3.55531007]
[1724165942397,0.04437221,142.62,142.6,0.05021007]
[1724165943094,0.04437221,142.62,142.6,3.55531007]
[1724165943294,0.04437221,142.62,142.6,0.05021007]
[1724165944198,3.54927221,142.62,142.6,0.05021007]
[1724165944386,32.32,142.61,142.6,0.05021007]
[1724165945499,35.8249,142.61,142.6,0.05021007]
[1724165946600,3.5055,142.59,142.55,3.5063]
[1724165946798,32.32,142.59,142.55,3.5063]
[1724165946999,32.32,142.59,142.53,2.6886]
[1724165947000,3.5058,142.58,142.54,3.5066]
[1724165947202,32.32,142.57,142.49,33.6458]
[1724165947418,32.32,142.57,142.48,1.2884]
[1724165947902,0.04673446,142.54,142.52,0.04679479]
[1724165948306,32.32,142.59,142.5,1.3258]
[1724165948689,32.32,142.59,142.5,4.9109262]
[1724165948690,35.88059454,142.59,142.5,4.9109262]
[1724165948893,0.04431267,142.54,142.52,3.55594622]
[1724165949107,35.88059454,142.59,142.52,0.04884622]
[1724165949300,0.05196401,142.54,142.53,3.5069]
[1724165949494,0.05318866,142.55,142.53,3.5069]
[1724165949700,0.05318866,142.55,142.52,0.04884622]
[1724165949898,0.05318866,142.55,142.53,3.5067]
[1724165951201,0.05318866,142.55,142.54,3.5066]
[1724165952202,32.32,142.61,142.55,3.5063]
[1724165952597,3.5056,142.59,142.55,3.5063]
[1724165953206,0.0455014,142.58,142.56,0.05243294]
[1724165954004,3.5512014,142.58,142.56,0.05243294]
[1724165954197,32.32,142.57,142.56,0.05243294]
[1724165954599,0.0455014,142.58,142.56,0.05243294]
[1724165955209,3.5512014,142.58,142.56,0.05243294]
[1724165956609,3.5059,142.57,142.56,0.05243294]
[1724165957106,35.8259,142.57,142.56,0.05243294]
[1724165957412,32.32,142.57,142.5,4.9109262]
[1724165957806,35.826,142.57,142.53,3.5068]
[1724165958198,0.04873993,142.56,142.54,0.04924395]
[1724165958902,3.55493993,142.56,142.54,0.04924395]
[1724165959309,0.04873993,142.56,142.54,0.04924395]
[1724165960215,0.04873993,142.56,142.54,3.55574395]
[1724165960519,0.04873993,142.56,142.54,0.04924395]
[1724165960814,0.04873993,142.56,142.55,3.5064]
[1724165961611,0.04873993,142.56,142.54,0.04924395]
[1724165962021,32.32,142.63,142.54,0.04924395]
[1724165962211,32.32,142.63,142.54,2.6663]
[1724165962514,3.505,142.61,142.57,3.5057]
[1724165963103,0.04711928,142.6,142.58,0.05344093]
[1724165963908,32.32,142.59,142.58,0.05344093]
[1724165964109,32.32,142.59,142.51,3.44510166]
[1724165964410,32.32,142.55,142.5,4.8332]
[1724165965108,32.32,142.55,142.51,0.04735714]
[1724165965310,0.05305533,142.54,142.51,0.04735714]
[1724165965719,0.05305533,142.54,142.51,3.55465714]
[1724165966219,0.05305533,142.54,142.51,0.04735714]
[1724165967019,0.05305533,142.54,142.51,3.55465714]
[1724165970012,3.55975533,142.54,142.51,0.04735714]
[1724165970627,0.05305533,142.54,142.51,3.55465714]
[1724165971623,3.55965533,142.54,142.51,0.04735714]
[1724165971819,32.32,142.53,142.51,0.04735714]
[1724165972118,0.05305533,142.54,142.44,2.6914]
[1724165972119,32.32,142.51,142.44,2.6914]
[1724165972422,32.32,142.51,142.45,3.5088]
[1724165972918,32.32,142.49,142.42,1.3661]
[1724165973126,32.36480962,142.49,142.43,3.59169663]
[1724165973428,3.5081,142.48,142.47,0.05112492]
[1724165973720,0.04480962,142.49,142.43,3.45248902]
[1724165974228,3.55270962,142.49,142.46,0.04758519]
[1724165974523,0.04480962,142.49,142.46,0.04758519]
[1724165974717,3.5081,142.48,142.46,0.04758519]
[1724165975524,3.55270962,142.49,142.46,0.04758519]
[1724165975818,0.04480962,142.49,142.46,0.04758519]
[1724165976014,3.55270962,142.49,142.46,0.04758519]
[1724165976418,32.36480962,142.49,142.46,0.04758519]
[1724165976825,3.5083,142.48,142.46,0.04758519]
[1724165978524,35.87270962,142.49,142.46,0.04758519]
[1724165979422,3.5081,142.48,142.46,0.04758519]
[1724165980628,32.36480962,142.49,142.4,32.32]
[1724165980927,3.5083,142.48,142.43,3.5092]
[1724165981520,0.05337448,142.47,142.44,0.0519685]
[1724165981821,0.05337448,142.47,142.44,3.5610685]
[1724165982222,0.05337448,142.47,142.44,0.0519685]
[1724165982423,0.05337448,142.47,142.44,3.5609685]
[1724165984820,0.05337448,142.47,142.45,3.5088]
[1724165985434,0.05337448,142.47,142.44,3.5609685]
[1724165987228,0.05337448,142.47,142.45,3.5087]
[1724165987626,0.05337448,142.47,142.44,0.0519685]
[1724165987831,0.05337448,142.47,142.44,3.5608685]
[1724165989335,3.56187448,142.47,142.44,0.0519685]
[1724165989541,0.05337448,142.47,142.44,0.0519685]
[1724165989734,0.05337448,142.47,142.44,3.5609685]
[1724165989933,0.05337448,142.47,142.44,0.0519685]
[1724165990531,32.32,142.54,142.46,32.32]
[1724165990832,3.5073,142.52,142.48,3.5079]
[1724165991024,32.32,142.54,142.48,3.52550529]
[1724165991227,33.6052,142.56,142.48,32.32]
[1724165991428,33.6052,142.56,142.52,3.507]
[1724165991429,3.5063,142.56,142.52,3.507]
[1724165991639,32.32,142.57,142.47,32.32]
[1724165991841,0.04642782,142.53,142.51,0.04453022]
[1724165992442,3.5071,142.52,142.51,0.04453022]
[1724165992829,0.04642782,142.53,142.51,0.04453022]
[1724165994038,3.55332782,142.53,142.51,0.04453022]
[1724165994747,3.5071,142.52,142.51,0.04453022]
[1724165994952,0.04642782,142.53,142.51,0.04453022]
[1724165995447,3.55352782,142.53,142.51,0.04453022]
[1724165995646,0.04642782,142.53,142.51,0.04453022]
[1724165996045,3.5071,142.52,142.51,0.04453022]
[1724165996641,3.5079,142.49,142.42,32.32]
[1724165997255,3.5079,142.49,142.45,3.5088]
[1724165997650,0.05092911,142.48,142.46,0.04673087]
[1724165998545,0.05092911,142.48,142.46,3.55523087]
[1724165998939,0.05092911,142.48,142.46,0.04673087]
[1724166000261,1.2542,142.57,142.46,32.36673087]
[1724166000561,32.32,142.56,142.48,32.32]
[1724166000755,3.5072,142.52,142.48,3.508]
[1724166000963,32.32,142.55,142.42,1.3474]
[1724166000964,32.32,142.51,142.42,1.3474]
[1724166001253,3.5083,142.48,142.44,3.5089]
[1724166001459,0.05007697,142.48,142.45,0.04514867]
[1724166001954,3.5086,142.46,142.41,2.6376]
[1724166002456,3.5086,142.46,142.42,3.5096]
[1724166002760,3.5093,142.43,142.36,32.32]
[1724166003060,32.32,142.46,142.37,1.02969181]
[1724166003247,3.5096,142.43,142.37,1.02969181]
[1724166003452,32.32,142.46,142.38,3.5105]
[1724166003646,0.05101384,142.41,142.38,0.04896134]
[1724166004160,0.05101384,142.41,142.38,3.55936134]
[1724166004854,0.05101384,142.41,142.38,0.04896134]
[1724166004855,3.56091384,142.41,142.38,0.04896134]
[1724166005159,0.05101384,142.41,142.38,0.04896134]
[1724166005362,3.56101384,142.41,142.38,0.04896134]
[1724166006057,0.05101384,142.41,142.38,3.55946134]
[1724166006256,0.05101384,142.41,142.38,0.04896134]
[1724166007157,0.05101384,142.41,142.38,3.55946134]
[1724166007563,32.37101384,142.41,142.38,3.55946134]
[1724166007753,35.88101384,142.41,142.38,0.04896134]
[1724166008154,35.88091384,142.41,142.38,0.04896134]
[1724166009051,3.5101,142.4,142.38,0.04896134]
[1724166009255,32.32,142.39,142.38,0.04896134]
[1724166010064,0.05101384,142.41,142.38,0.04896134]
[1724166011560,0.05101384,142.41,142.29,3.8878]
[1724166011561,3.5109,142.37,142.29,3.8878]
[1724166011760,0.05101384,142.41,142.33,32.32]
[1724166012057,0.05101384,142.41,142.35,32.32]
[1724166012263,0.05101384,142.41,142.36,1.3598]
[1724166012653,0.05101384,142.41,142.37,1.3081]
[1724166012863,32.32,142.43,142.37,1.3081]
[1724166013255,3.5098,142.42,142.38,3.5104]
[1724166013450,3.5098,142.42,142.38,6.95829477]
[1724166013652,1.3091,142.47,142.38,3.44789477]
[1724166013856,32.32,142.44,142.37,1.3081]
[1724166014363,32.32,142.42,142.37,1.3081]
[1724166014568,32.32,142.42,142.37,4.8948501]
[1724166014752,32.32,142.42,142.39,3.5102]
[1724166014951,32.32,142.42,142.39,7.07589492]
[1724166015161,35.8293,142.44,142.37,1.3081]
[1724166015365,0.05352308,142.41,142.39,3.5102]
[1724166015868,0.05352308,142.41,142.38,0.05374794]
[1724166016558,0.05352308,142.41,142.39,3.5102]
[1724166017465,0.05352308,142.41,142.38,3.56424794]
[1724166017668,0.05352308,142.41,142.38,0.05374794]
[1724166018066,32.37352308,142.41,142.38,0.05374794]
[1724166018470,32.37352308,142.41,142.38,3.56424794]
[1724166018768,0.05352308,142.41,142.38,3.56424794]
[1724166019267,32.37352308,142.41,142.38,0.05374794]
[1724166019766,35.88362308,142.41,142.38,0.05374794]
[1724166019962,3.56362308,142.41,142.38,0.05374794]
[1724166020367,32.32,142.39,142.34,3.5114]
[1724166020665,0.05352308,142.41,142.32,32.32]
[1724166020666,32.32,142.4,142.32,32.32]
[1724166020973,3.5103,142.4,142.35,3.5112]
[1724166021266,3.5103,142.4,142.33,32.32]
[1724166021468,3.5104,142.39,142.33,3.45364852]
[1724166021664,32.32,142.4,142.31,34.9603]
[1724166022059,32.32,142.4,142.31,38.45325036]
[1724166022256,0.05402034,142.38,142.31,6.13325036]
[1724166022460,0.05402034,142.38,142.32,32.32]
[1724166022771,0.05402034,142.38,142.34,32.32]
[1724166022975,0.05402034,142.38,142.31,2.6403]
[1724166023179,32.32,142.32,142.25,7.331628]
[1724166023358,0.05402034,142.38,142.15,4.0645]
[1724166023359,2.664,142.31,142.15,4.0645]
[1724166023669,3.5139,142.25,142.15,7.5806]
[1724166023871,1.3364,142.37,142.15,4.0645]
[1724166024072,2.6498,142.3,142.15,4.0645]
[1724166024276,32.32,142.26,142.16,1.03109041]
[1724166024576,1.3364,142.29,142.16,1.03109041]
[1724166025173,3.52994273,142.32,142.16,3.59031363]
[1724166025375,3.9862,142.36,142.23,32.32]
[1724166025675,5.36536053,142.35,142.24,1.3797]
[1724166025979,3.9862,142.36,142.15,4.88797389]
[1724166025980,7.4905202,142.36,142.23,35.87135334]
[1724166026173,7.4905202,142.36,142.16,1.3731]
[1724166026174,3.9862,142.36,142.16,1.3731]
[1724166026372,32.32,142.31,142.22,32.32]
[1724166026569,32.32,142.33,142.24,32.32]
[1724166026879,32.32,142.35,142.25,32.32]
[1724166027085,32.32,142.35,142.18,35.85232016]
[1724166027086,32.32,142.33,142.18,3.53232016]
[1724166027277,32.32,142.31,142.23,32.32]
[1724166027781,0.04551915,142.31,142.24,2.5732]
[1724166027970,32.36551915,142.31,142.24,2.5732]
[1724166028478,0.04551915,142.31,142.24,6.0872]
[1724166028778,0.04551915,142.31,142.25,40.44]
[1724166028969,0.04551915,142.31,142.25,45.2284]
[1724166029172,0.04551915,142.31,142.27,40.44]
[1724166029372,1.2951,142.39,142.29,40.44]
[1724166029572,43.9512,142.36,142.25,45.2283]
[1724166029771,4.74276531,142.39,142.25,45.2283]
[1724166029772,40.44,142.34,142.26,3.56217768]
[1724166030180,1.2951,142.39,142.25,41.7147]
[1724166030181,40.44,142.36,142.25,41.7147]
[1724166030687,48.72614932,142.39,142.28,40.44]
[1724166030882,41.7351,142.39,142.29,3.5127]
[1724166031084,40.44,142.36,142.26,40.44]
[1724166031285,40.44,142.34,142.26,3.49248946]
[1724166031585,1.2751,142.38,142.27,40.44]
[1724166031884,40.44,142.36,142.27,3.54586888]
[1724166032089,40.44,142.34,142.25,1.2747]
[1724166032481,0.05146318,142.32,142.29,0.0500471]
[1724166032783,40.44,142.31,142.29,0.0500471]
[1724166032986,0.05146318,142.32,142.29,0.0500471]
[1724166033372,40.44,142.31,142.29,0.0500471]
[1724166033702,0.05146318,142.32,142.29,0.0500471]
[1724166035086,40.44,142.31,142.29,0.0500471]
[1724166035279,40.44,142.3,142.19,43.1348]
[1724166035479,40.44,142.3,142.22,4.8899]
[1724166035686,44.03709406,142.3,142.2,1.2866]
[1724166035890,40.44,142.25,142.16,40.44]
[1724166036098,40.44,142.25,142.17,3.48824018]
[1724166036384,40.44,142.25,142.15,1.3857]
[1724166036579,3.50333926,142.26,142.17,3.5157]
[1724166036780,40.44,142.28,142.16,40.44]
[1724166036982,1.3773,142.29,142.2,3.5149]
[1724166037288,3.47077477,142.28,142.18,40.44]
[1724166037488,41.8173,142.29,142.18,43.87985786]
[1724166037888,3.4932598,142.28,142.18,43.87985786]
[1724166038195,0.04478665,142.26,142.18,43.87985786]
[1724166038394,0.04478665,142.26,142.19,1.354]
[1724166038692,40.48478665,142.26,142.19,4.8692]
[1724166038884,40.48478665,142.26,142.19,1.354]
[1724166039479,0.04478665,142.26,142.19,1.354]
[1724166040278,0.04478665,142.26,142.2,1.26]
[1724166040478,0.04478665,142.26,142.21,3.5147]
[1724166040679,0.04478665,142.26,142.2,1.26]
[1724166041082,0.04478665,142.26,142.22,3.5145]
[1724166041281,0.04478665,142.26,142.2,1.26]
[1724166041485,0.04478665,142.26,142.23,40.44]
[1724166041692,0.04478665,142.26,142.2,41.7]
[1724166041693,1.3258,142.38,142.25,40.44]
[1724166041894,3.9711,142.38,142.25,44.00934762]
[1724166042188,3.5119,142.33,142.26,3.5135]
[1724166042393,40.44,142.33,142.2,1.26]
[1724166042697,3.5129,142.29,142.2,1.26]
[1724166042995,40.44,142.33,142.21,40.44]
[1724166043196,40.44,142.33,142.22,1.2742]
[1724166043398,3.5126,142.3,142.24,3.514]
[1724166043783,40.44,142.29,142.2,1.26]
[1724166043991,3.55998477,142.28,142.25,0.04723676]
[1724166044193,0.04688477,142.28,142.25,0.04723676]
[1724166045999,0.04688477,142.28,142.19,1.354]
[1724166046000,3.5136,142.26,142.19,1.354]
[1724166046392,3.5136,142.26,142.19,4.8693]
[1724166046601,3.5136,142.26,142.19,1.354]
[1724166046793,40.44,142.27,142.19,1.354]
[1724166046995,40.44,142.27,142.19,4.8692]
[1724166047300,40.44,142.25,142.18,1.2742]
[1724166047496,40.44,142.21,142.13,1.2657]
[1724166048096,41.8189,142.23,142.13,1.2657]
[1724166048295,41.8189,142.23,142.14,40.44]
[1724166048588,3.5146,142.22,142.16,3.5158]
[1724166048997,3.5148,142.21,142.16,3.5158]
[1724166049201,41.8189,142.23,142.13,1.2657]
[1724166049499,0.04971542,142.2,142.13,1.2657]
[1724166049700,0.04971542,142.2,142.16,3.5158]
[1724166049903,0.04971542,142.2,142.13,1.2657]
[1724166050091,3.5155,142.18,142.13,1.2657]
[1724166050291,0.04971542,142.2,142.12,45.20730747]
[1724166050591,3.5153,142.19,142.12,45.20730747]
[1724166050796,0.04971542,142.2,142.14,3.5163]
[1724166051195,43.97792195,142.22,142.14,3.5163]
[1724166051592,45.23682195,142.22,142.15,3.5161]
[1724166051801,3.5153,142.19,142.12,45.26545182]
[1724166051994,40.44,142.21,142.12,1.3051]
[1724166052188,40.44,142.21,142.1,40.44]
[1724166052189,3.56522771,142.18,142.1,40.44]
[1724166052595,3.56522771,142.18,142.11,3.58746973]
[1724166052792,0.04952771,142.18,142.12,40.44]
[1724166053096,0.04952771,142.18,142.15,3.5161]
[1724166053295,0.04952771,142.18,142.13,3.47586105]
[1724166053489,0.04952771,142.18,142.12,40.44]
[1724166053804,40.44,142.14,142.09,1.3719]
[1724166054098,40.44,142.16,142.09,1.3719]
[1724166054307,0.04952771,142.18,142.1,40.44]
[1724166054501,0.04952771,142.18,142.09,1.3719]
[1724166054502,0.04952771,142.18,142.12,40.44]
[1724166054711,1.3274,142.26,142.16,40.44]
[1724166054899,1.3274,142.26,142.18,40.44]
[1724166055090,1.3274,142.26,142.18,3.44633907]
[1724166055393,4.8412,142.26,142.2,3.515]
[1724166055593,4.8412,142.26,142.18,3.52541579]
[1724166055798,40.44,142.28,142.16,41.7915]
[1724166056100,40.44,142.28,142.18,40.44]
[1724166056295,40.44,142.28,142.18,43.90760835]
[1724166056495,0.04967855,142.23,142.21,0.05326318]
[1724166056690,80.88,142.22,141.96,21.03]
[1724166056898,40.44,142.09,142.03,2.65]
[1724166057101,3.5163,142.15,142.06,1.2658]
[1724166057403,40.44,142.13,142.06,1.2658]
[1724166057604,1.2784,142.19,142.11,3.5172]
[1724166057788,0.04967855,142.23,142.06,4.71829971]
[1724166057992,0.04967855,142.23,142.15,40.44]
[1724166058193,0.04967855,142.23,142.16,6.01603835]
[1724166058397,0.04967855,142.23,142.16,2.5407]
[1724166058706,0.04967855,142.23,142.18,40.44]
[1724166059091,42.9953,142.31,142.2,40.44]
[1724166059406,40.44,142.28,142.18,40.44]
[1724166059707,40.44,142.3,142.19,40.44]
[1724166060199,40.44,142.32,142.21,40.44]
[1724166060807,40.44,142.34,142.24,40.44]
[1724166060998,40.44,142.34,142.25,3.8767]
[1724166061397,38.03433402,142.52,142.28,40.44]
[1724166061703,40.44,142.39,142.28,40.44]
[1724166061900,40.44,142.35,142.25,3.8767]
[1724166062095,40.44,142.37,142.26,40.44]
[1724166062296,40.44,142.39,142.28,40.44]
[1724166062496,48.55,142.4,142.28,48.55]
[1724166062894,48.55,142.37,142.26,48.55]
[1724166063092,48.55,142.35,142.25,3.8767]
[1724166063501,48.55,142.37,142.31,3.5122]
[1724166063701,48.55,142.4,142.33,0.0537117]
[1724166064097,48.55,142.42,142.33,0.0537117]
[1724166064596,48.55,142.42,142.36,3.511]
[1724166064803,48.55,142.42,142.33,1.3839]
[1724166064999,1.2704,142.46,142.33,1.3839]
[1724166065000,48.55,142.4,142.33,1.3839]
[1724166065395,48.55,142.38,142.32,1.3579]
[1724166065799,48.55,142.35,142.28,1.3775]
[1724166066005,48.55,142.33,142.28,1.3775]
[1724166066208,2.5394,142.39,142.28,1.3775]
[1724166066401,48.55,142.36,142.28,1.3775]
[1724166066598,52.0611,142.36,142.28,1.3775]
[1724166066905,48.55,142.36,142.28,1.3775]
[1724166067105,48.55,142.36,142.35,0.05180786]
[1724166067413,48.55,142.36,142.28,1.3775]
[1724166067609,48.55,142.31,142.2,48.55]
[1724166067804,3.5126,142.3,142.21,4.7632]
[1724166068105,48.55,142.27,142.2,2.7349]
[1724166068509,48.55,142.27,142.22,1480.16944]
[1724166069098,1.3751,142.29,142.22,1480.16944]
[1724166069307,48.55,142.32,142.22,1480.16944]
[1724166069498,48.55,142.32,142.24,0.04844498]
[1724166069804,52.0628,142.29,142.24,0.04844498]
[1724166070001,0.0460821,142.26,142.24,0.04844498]
[1724166071906,48.55,142.25,142.22,1476.86393264]
[1724166072106,52.0643,142.23,142.22,1285.58653264]
[1724166072307,52.0643,142.23,142.22,1276.66233264]
[1724166072507,52.0643,142.23,142.22,1225.15833264]
[1724166072705,52.064,142.25,142.22,1225.15833264]
[1724166072903,48.55,142.25,142.22,1225.15833264]
[1724166073108,0.0460821,142.26,142.22,1225.15833264]
[1724166073512,48.55,142.25,142.22,1225.15833264]
[1724166073914,3.5143,142.24,142.22,1225.15833264]
[1724166074110,48.55,142.25,142.22,1225.15833264]
[1724166074412,52.0643,142.23,142.22,1225.15833264]
[1724166075204,52.0643,142.23,142.22,1030.92833264]
[1724166075407,52.0643,142.23,142.22,979.42433264]
[1724166076114,52.0643,142.23,142.22,975.8830994]
[1724166076511,55.55713659,142.23,142.22,975.8830994]
[1724166076907,121.7043,142.23,142.22,968.9630994]
[1724166077116,61.01862504,142.23,142.22,968.9630994]
[1724166077323,56.94525599,142.23,142.22,968.9630994]
[1724166077905,53.35647973,142.23,142.22,965.4030994]
[1724166078111,56.88765659,142.23,142.22,719.6690994]
[1724166078415,101.90651442,142.23,142.22,619.8060994]
[1724166078617,122.99651442,142.23,142.22,602.0144994]
[1724166078917,139.63372825,142.23,142.22,578.4324994]
[1724166079108,139.63372825,142.23,142.22,570.8709994]
[1724166079309,139.63099243,142.23,142.22,570.8709994]
[1724166079518,139.63099243,142.23,142.22,564.0284994]
[1724166079721,136.14909346,142.23,142.22,530.2981994]
[1724166080025,136.14909346,142.23,142.22,512.0429994]
[1724166080212,136.14909346,142.23,142.22,508.5429994]
[1724166080413,136.14909346,142.23,142.22,497.1723994]
[1724166080607,136.14909346,142.23,142.22,477.4795994]
[1724166080808,139.58880038,142.23,142.22,467.8364994]
[1724166081017,139.58880038,142.23,142.22,459.7690994]
[1724166081223,143.17769346,142.23,142.22,120.6820994]
[1724166081423,143.17769346,142.23,142.22,106.4124994]
[1724166081620,143.17769346,142.23,142.22,82.4446994]
[1724166082017,146.7052796,142.23,142.22,62.0756994]
[1724166082315,141.88547904,142.23,142.22,15.85345555]
[1724166082519,130.02562007,142.23,142.22,5.555e-05]
[1724166082829,146.68676902,142.23,142.22,5.555e-05]
[1724166083725,3.5178,142.09,142.02,1.353]
[1724166083921,48.55,142.08,142.01,3.68307114]
[1724166084425,48.55,142.1,142.01,3.68307114]
[1724166084611,52.08708403,142.1,142.01,3.68307114]
[1724166084814,3.53708403,142.1,142.01,52.23307114]
[1724166085027,48.55,142.12,142.01,52.23307114]
[1724166085223,0.0471031,142.07,142.01,52.23307114]
[1724166085525,0.0471031,142.07,142.01,3.68307114]
[1724166086014,0.0471031,142.07,142.05,3.5187]
[1724166086509,0.0471031,142.07,142.06,3.5185]
[1724166086719,48.55,142.15,142.06,1.3663]
[1724166086914,28.12,142.18,142.09,48.55]
[1724166087114,28.12,142.18,142.16,460.90671]
[1724166087323,48.55,142.2,142.16,460.90671]
[1724166088114,52.0658,142.17,142.16,460.90671]
[1724166088317,48.55,142.17,142.16,460.90671]
[1724166088516,48.55,142.19,142.16,460.90671]
[1724166088722,48.55,142.22,142.16,460.90671]
[1724166088929,0.05120517,142.19,142.17,0.04663502]
[1724166089522,48.60120517,142.19,142.17,0.04663502]
[1724166089821,52.11650517,142.19,142.17,0.04663502]
[1724166090414,0.05120517,142.19,142.17,0.04663502]
[1724166090616,48.60120517,142.19,142.17,0.04663502]
[1724166091532,0.05120517,142.19,142.17,0.04663502]
[1724166092029,48.60120517,142.19,142.17,0.04663502]
[1724166092232,48.60120517,142.19,142.16,460.90671]
[1724166092422,48.55,142.17,142.16,275.30071]
[1724166092625,52.0658,142.17,142.16,275.30071]
[1724166092924,3.5158,142.17,142.16,275.30071]
[1724166093818,3.5158,142.17,142.16,263.27671]
[1724166093819,52.0658,142.17,142.16,263.27671]
[1724166094222,56.82136279,142.17,142.16,263.27671]
[1724166094422,53.3584226,142.17,142.16,204.72271]
[1724166094922,53.3584226,142.17,142.16,70.62071]
[1724166094923,55.62615406,142.17,142.16,70.62071]
[1724166095229,56.91884237,142.17,142.16,70.62071]
[1724166095430,55.62615406,142.17,142.16,70.62071]
[1724166095930,53.35843549,142.17,142.16,67.62071]
[1724166096229,56.93984948,142.17,142.16,16.11671]
[1724166096720,56.93984948,142.17,142.16,7.49271]
[1724166097425,53.35843549,142.17,142.16,3.99271]
[1724166097728,4.87334586,142.17,142.16,3.99271]
[1724166098031,3.58071037,142.17,142.16,3.99271]
[1724166098329,48.60120517,142.19,142.16,3.99271]
[1724166098519,40.54,142.17,142.16,3.99271]
[1724166098718,44.09905486,142.19,142.16,3.99271]
[1724166098931,40.59120517,142.19,142.16,3.99271]
[1724166099232,3.5008157,142.18,142.16,3.99271]
[1724166099420,0.05120517,142.19,142.16,3.99271]
[1724166100319,0.05120517,142.19,142.17,3.5157]
[1724166100523,40.54,142.21,142.17,1.3505]
[1724166100818,40.54,142.19,142.16,3.99271]
[1724166101124,40.54,142.22,142.17,0.04459718]
[1724166101621,3.46418316,142.21,142.17,0.04459718]
[1724166101926,44.0548,142.22,142.17,0.04459718]
[1724166102123,40.54,142.2,142.17,0.04459718]
[1724166102319,40.54,142.18,142.17,0.04459718]
[1724166102524,48.65,142.18,142.11,1.3486]
[1724166102727,52.1657,142.18,142.11,4.8656]
[1724166102927,48.65,142.18,142.11,4.8656]
[1724166103129,48.65,142.15,142.11,1.3486]
[1724166103520,48.65,142.15,142.02,48.65]
[1724166103831,52.21402363,142.15,142.04,48.65]
[1724166104018,0.04634846,142.14,142.04,48.65]
[1724166104222,0.04634846,142.14,142.02,1.3362]
[1724166104422,3.56304846,142.14,142.04,48.65]
[1724166104626,52.21402363,142.15,142.04,48.65]
[1724166105024,48.65,142.15,142.04,48.65]
[1724166105225,0.0466752,142.1,142.04,48.65]
[1724166105432,48.65,142.15,142.09,3.5176]
[1724166105629,52.22271349,142.15,142.1,1.2733]
[1724166105834,3.57271349,142.15,142.1,1.2733]
[1724166106037,48.65,142.18,142.11,3.5171]
[1724166106338,48.65,142.18,142.1,1.2733]
[1724166106339,48.65,142.13,142.1,1.2733]
[1724166106534,3.5175,142.1,142.07,1.2814]
[1724166106727,48.65,142.11,142.07,1.2814]
[1724166106936,48.65,142.11,142.1,0.05082982]
[1724166107124,55.63202658,142.11,142.1,0.05082982]
[1724166107439,52.11472658,142.11,142.03,1.2814]
[1724166107939,3.46472658,142.11,142.03,1.2814]
[1724166108129,0.04541711,142.12,142.09,0.04613435]
[1724166108326,3.57216104,142.11,142.09,0.04613435]
[1724166108537,48.65,142.11,142.03,1.2814]
[1724166108727,55.74458622,142.11,142.03,1.2814]
[1724166108930,48.65,142.15,142.03,49.9314]
[1724166109128,0.05101457,142.11,142.03,49.9314]
[1724166109431,0.05101457,142.11,142.09,0.04948797]
[1724166109835,0.05101457,142.11,142.03,49.9314]
[1724166110034,0.05101457,142.11,142.03,1.2814]
[1724166110734,0.05101457,142.11,142.09,0.04795611]
[1724166110935,0.05101457,142.11,142.04,1.3481]
[1724166111436,48.70101457,142.11,142.06,0.04564376]
[1724166111838,50.01241457,142.11,142.06,0.04564376]
[1724166112136,0.05101457,142.11,142.06,0.04564376]
[1724166112538,48.65,142.16,142.06,0.04564376]
[1724166113239,3.5167,142.14,142.06,3.5185]